bitfinex-derivatives/quotes_BTCF0:USTF0_20250313
["timestamp","ask_amount","ask_price","bid_price","bid_amount"]
[1741869195998,0.3464,83126.0,83095.0,0.1852]
[1741869196195,0.3464,83126.0,83098.0,0.0601806]
[1741869196399,0.1203418,83114.0,83113.0,0.1203392]
[1741869196797,0.3464,83126.0,83125.0,0.1203224]
[1741869196798,0.1771,83126.0,83125.0,0.1203224]
[1741869197103,0.289618,83128.0,83127.0,0.1203195]
[1741869197300,0.1203319,83119.0,83118.0,0.120329]
[1741869197597,0.1203354,83116.0,83115.0,0.1805009]
[1741869197993,0.2974329,83119.0,83118.0,0.1203325]
[1741869198210,0.1771,83119.0,83105.0,0.00018049]
[1741869198401,0.1203499,83107.0,83106.0,0.1203464]
[1741869198701,0.1203389,83116.0,83115.0,0.1203354]
[1741869198901,0.1705,83116.0,83115.0,0.1203354]
[1741869199604,0.1203397,83113.0,83112.0,0.06017]
[1741869199805,0.1738,83115.0,83114.0,0.1203383]
[1741869200194,0.0601489,83142.0,83116.0,0.0601672]
[1741869200397,0.1705,83123.0,83122.0,0.1203267]
[1741869200592,0.3443,83141.0,83122.0,0.3903267]
[1741869200809,0.1203011,83140.0,83128.0,0.120318]
[1741869201005,0.3443,83141.0,83128.0,0.120318]
[1741869201301,0.3443,83141.0,83126.0,0.0601599]
[1741869201502,0.1705,83141.0,83140.0,0.1203006]
[1741869201703,0.1796,83152.0,83151.0,0.1202847]
[1741869201897,0.2998833,83152.0,83151.0,0.1202847]
[1741869202097,0.1796,83152.0,83151.0,0.1202847]
[1741869202414,0.2998833,83152.0,83151.0,0.1202847]
[1741869202906,0.1796,83152.0,83142.0,0.0601485]
[1741869203109,0.1202963,83145.0,83144.0,0.120291]
[1741869203605,0.1868,83145.0,83124.0,0.0601612]
[1741869203803,0.1868,83145.0,83144.0,0.1202949]
[1741869205002,0.1796,83152.0,83139.0,0.0601504]
[1741869205204,0.1796,83152.0,83151.0,0.1202847]
[1741869206010,0.28502627,83180.0,83141.0,0.1803]
[1741869206301,0.1736,83179.0,83159.0,0.1202732]
[1741869206504,7e-08,83160.0,83159.0,0.3902732]
[1741869206899,0.1717,83178.0,83177.0,0.1202471]
[1741869207108,0.00180377,83199.0,83198.0,0.1202168]
[1741869207409,0.17290377,83199.0,83198.0,0.1202168]
[1741869207607,0.1711,83199.0,83198.0,0.1202168]
[1741869207806,0.01191689,83215.0,83214.0,0.1201937]
[1741869208107,0.00011802,83207.0,83190.0,0.00018037]
[1741869208312,0.00011802,83207.0,83206.0,0.1202052]
[1741869208511,0.00011802,83207.0,83206.0,0.3902052]
[1741869208805,0.1201775,83227.0,83226.0,0.1201755]
[1741869209307,0.0600887,83227.0,83226.0,0.1802611]
[1741869209603,0.1776,83229.0,83228.0,0.1201734]
[1741869209803,0.0600874,83228.0,83224.0,0.1201768]
[1741869210105,0.2912734,83228.0,83223.0,0.0600896]
[1741869210301,0.0600887,83226.0,83225.0,0.1201776]
[1741869210502,0.0600887,83226.0,83223.0,0.0600896]
[1741869210710,0.3604,83225.0,83224.0,0.1201792]
[1741869211104,0.3604,83225.0,83218.0,0.06027406]
[1741869211301,0.540668,83225.0,83224.0,0.1201792]
[1741869211908,0.1201864,83219.0,83218.0,0.00018026]
[1741869212504,0.1201864,83219.0,83218.0,0.12036816]
[1741869212900,0.3604,83225.0,83218.0,0.00018026]
[1741869213101,0.3604,83225.0,83195.0,0.0601102]
[1741869213302,0.3604,83225.0,83170.0,0.28517442]
[1741869213303,0.0601025,83207.0,83171.0,0.3527]
[1741869213502,0.0601051,83203.0,83187.0,0.0601158]
[1741869213709,0.60092,83221.0,83171.0,0.3527]
[1741869213710,0.28502627,83200.0,83171.0,0.1698]
[1741869214008,0.28502627,83190.0,83175.0,0.0601248]
[1741869214206,0.1202431,83181.0,83180.0,0.1202397]
[1741869214404,0.1681,83189.0,83178.0,0.0601227]
[1741869214610,0.1202445,83181.0,83180.0,0.120241]
[1741869214813,0.1202414,83183.0,83182.0,0.1202385]
[1741869215111,0.00017988,83191.0,83190.0,0.1202283]
[1741869216114,0.12040678,83191.0,83190.0,0.1202283]
[1741869216411,0.00017988,83191.0,83170.0,0.00014815]
[1741869216910,0.00017988,83191.0,83190.0,0.1202283]
[1741869217209,0.00017988,83191.0,83171.0,0.1802]
[1741869217512,0.00017988,83191.0,83190.0,0.1202283]
[1741869218014,8e-08,83191.0,83190.0,0.3702283]
[1741869218315,0.0600812,83236.0,83216.0,0.1201908]
[1741869218517,0.0600812,83236.0,83190.0,0.25]
[1741869218518,1.39712,83239.0,83238.0,0.120159]
[1741869218717,0.1802484,83235.0,83232.0,0.0600836]
[1741869219012,0.1201598,83238.0,83237.0,0.120159]
[1741869219215,0.1201619,83236.0,83229.0,0.06026616]
[1741869219510,0.1201706,83230.0,83229.0,0.00018026]
[1741869219716,0.1201879,83218.0,83217.0,0.1201891]
[1741869219914,1.3978,83239.0,83215.0,0.1201905]
[1741869219915,0.1802924,83216.0,83215.0,0.1201905]
[1741869220116,0.0600963,83216.0,83215.0,0.1201905]
[1741869220515,0.1202056,83209.0,83208.0,0.120199]
[1741869220726,0.060098,83213.0,83210.0,0.1802957]
[1741869221019,0.1201867,83219.0,83218.0,0.120185]
[1741869221210,0.00018026,83221.0,83220.0,0.120185]
[1741869221913,0.00018026,83221.0,83205.0,0.18448026]
[1741869221914,0.1201937,83215.0,83214.0,0.1201923]
[1741869222116,0.1806,83220.0,83206.0,0.02183524]
[1741869222310,0.1201951,83213.0,83212.0,0.1201951]
[1741869222809,0.00018026,83221.0,83220.0,0.120185]
[1741869224420,0.18448026,83221.0,83220.0,0.120185]
[1741869224622,0.30466386,83221.0,83220.0,0.14236413]
[1741869225323,0.18448026,83221.0,83220.0,0.120185]
[1741869225818,0.00018026,83221.0,83220.0,0.120185]
[1741869226019,0.00180281,83256.0,83220.0,0.12918845]
[1741869226207,0.1771,83248.0,83247.0,0.120146]
[1741869226413,0.00180281,83256.0,83255.0,0.1201345]
[1741869226614,0.00180281,83256.0,83231.0,0.01918845]
[1741869226810,0.0600688,83253.0,83232.0,0.01911779]
[1741869227015,0.1201489,83245.0,83244.0,0.0600745]
[1741869227314,0.1201561,83240.0,83239.0,0.0600787]
[1741869227511,0.1771,83252.0,83241.0,0.0600768]
[1741869227711,0.1771,83252.0,83234.0,0.00018026]
[1741869227912,0.1771,83252.0,83251.0,0.1201402]
[1741869228516,0.00180281,83256.0,83251.0,0.1201402]
[1741869228517,0.00180281,83256.0,83255.0,0.1201345]
[1741869228815,0.1765,83263.0,83262.0,0.1201244]
[1741869229018,0.2966229,83263.0,83262.0,0.1201244]
[1741869229216,0.00072,83264.0,83263.0,0.1201229]
[1741869229414,0.1801576,83278.0,83277.0,0.1200999]
[1741869229819,0.1201056,83276.0,83275.0,0.1201047]
[1741869230015,0.1201114,83271.0,83270.0,0.1801673]
[1741869230215,0.00180211,83281.0,83280.0,0.1200984]
[1741869230418,0.00180211,83281.0,83269.0,0.00018014]
[1741869230419,0.1201128,83270.0,83269.0,0.00018014]
[1741869230918,0.1201128,83270.0,83216.0,0.6009534]
[1741869230919,0.15,83270.0,83235.0,0.1716]
[1741869231225,0.1201543,83242.0,83241.0,0.1201513]
[1741869231419,0.3615,83269.0,83236.0,0.20039026]
[1741869231625,0.0600594,83266.0,83236.0,0.20039026]
[1741869231829,0.1765,83265.0,83236.0,0.20039026]
[1741869232024,0.1765,83265.0,83243.0,0.00018014]
[1741869232025,0.00017974,83259.0,83243.0,0.00018014]
[1741869232327,0.1201504,83244.0,83243.0,0.00018014]
[1741869232514,0.1201504,83244.0,83243.0,0.0224704]
[1741869232917,0.2701504,83244.0,83243.0,0.0224704]
[1741869233124,0.3497,83244.0,83221.0,0.189]
[1741869233324,0.1201673,83235.0,83230.0,0.0600846]
[1741869233624,0.3497,83244.0,83230.0,0.1201664]
[1741869233625,0.120172,83231.0,83230.0,0.1201664]
[1741869233924,0.1201864,83219.0,83210.0,0.060099]
[1741869234112,0.1201908,83217.0,83216.0,0.01936788]
[1741869234325,0.1201908,83216.0,83203.0,0.42050419]
[1741869234513,0.4661908,83216.0,83208.0,0.00018025]
[1741869234816,0.1201937,83214.0,83213.0,0.27887685]
[1741869236011,0.346,83216.0,83213.0,0.27887685]
[1741869236213,0.1729,83216.0,83215.0,0.1201922]
[1741869236626,0.1201937,83214.0,83213.0,0.27887685]
[1741869237218,0.4430937,83214.0,83213.0,0.27887685]
[1741869237423,0.1202009,83209.0,83208.0,0.00018025]
[1741869237621,0.1202009,83209.0,83186.0,0.1739]
[1741869237622,0.120211,83202.0,83196.0,0.120219]
[1741869237922,0.1857,83208.0,83207.0,0.1202038]
[1741869238721,0.00064,83211.0,83210.0,0.1201994]
[1741869238927,0.00180324,83219.0,83218.0,0.1201879]
[1741869239123,0.00180324,83219.0,83218.0,0.13942731]
[1741869239325,0.00180324,83219.0,83218.0,0.1201879]
[1741869239517,0.00180324,83219.0,83218.0,0.13940173]
[1741869239721,0.12198964,83219.0,83218.0,0.01921383]
[1741869239916,0.00180324,83219.0,83218.0,0.01921499]
[1741869240118,0.00180324,83219.0,83218.0,0.1614103]
[1741869240326,0.00180324,83219.0,83218.0,0.17462592]
[1741869240623,0.191,83233.0,83221.0,0.1201836]
[1741869240816,0.1201736,83228.0,83221.0,0.02200852]
[1741869241022,0.1813,83227.0,83221.0,0.16138444]
[1741869241317,0.12036235,83222.0,83221.0,0.02200852]
[1741869241517,0.120197,83214.0,83213.0,0.1201942]
[1741869241727,0.3605,83221.0,83219.0,0.120185]
[1741869241924,0.3605,83221.0,83220.0,0.120185]
[1741869242223,0.4806836,83221.0,83220.0,0.01]
[1741869242417,0.1201965,83213.0,83212.0,0.1201941]
[1741869242617,0.1202054,83206.0,83205.0,0.1202046]
[1741869242829,0.1202054,83206.0,83205.0,0.01]
[1741869243123,0.1202052,83206.0,83205.0,0.01]
[1741869243521,0.1202139,83200.0,83199.0,0.00018025]
[1741869244123,0.4613339,83200.0,83199.0,0.00018025]
[1741869244319,0.4613339,83200.0,83173.0,0.1863]
[1741869244320,0.1202436,83182.0,83181.0,0.1202402]
[1741869244521,0.0601077,83199.0,83173.0,0.1863]
[1741869244522,0.120248,83178.0,83176.0,0.0601242]
[1741869244819,0.80634627,83200.0,83176.0,0.0601242]
[1741869244820,0.00180362,83197.0,83192.0,0.1202225]
[1741869245024,0.00180362,83197.0,83196.0,0.1202197]
[1741869245225,0.00180362,83197.0,83196.0,0.1302197]
[1741869246018,0.12202182,83197.0,83196.0,0.01]
[1741869246227,0.1202298,83189.0,83171.0,0.4305273]
[1741869246518,0.3378,83193.0,83192.0,0.1202255]
[1741869246718,0.3378,83193.0,83192.0,0.1302255]
[1741869246920,0.00180362,83197.0,83195.0,0.1202211]
[1741869247229,0.00180362,83197.0,83196.0,0.3115197]
[1741869247431,0.00180362,83197.0,83196.0,0.5253197]
[1741869247817,5e-08,83205.0,83204.0,0.1202081]
[1741869248023,5e-08,83205.0,83204.0,0.2302081]
[1741869248420,5e-08,83205.0,83204.0,0.1202081]
[1741869248625,5e-08,83205.0,83204.0,0.1302081]
[1741869249023,0.12020675,83205.0,83204.0,0.1302081]
[1741869249230,5e-08,83205.0,83204.0,0.1202081]
[1741869250824,5e-08,83205.0,83181.0,0.0601203]
[1741869251024,5e-08,83205.0,83188.0,0.12041145]
[1741869251025,0.1202298,83189.0,83188.0,0.12041145]
[1741869251425,0.3306,83201.0,83189.0,0.0601147]
[1741869251631,0.1898,83204.0,83194.0,0.060111]
[1741869251829,0.1202081,83204.0,83203.0,0.1202081]
[1741869252027,0.1202228,83195.0,83194.0,0.1803298]
[1741869252220,0.1898,83215.0,83175.0,0.0601243]
[1741869252221,0.3757,83203.0,83175.0,0.0601243]
[1741869252421,0.1202298,83189.0,83181.0,0.0601203]
[1741869252729,0.1202298,83189.0,83177.0,0.1737]
[1741869253336,0.4787298,83189.0,83177.0,0.1737]
[1741869253524,0.4787298,83189.0,83186.0,0.1202337]
[1741869253725,0.4787298,83189.0,83177.0,0.1737]
[1741869253925,0.4787298,83189.0,83183.0,0.1202371]
[1741869254225,0.4787298,83189.0,83188.0,0.12041145]
[1741869254835,0.4787298,83189.0,83188.0,0.00018025]
[1741869255233,0.180394,83170.0,83160.0,0.01160121]
[1741869255429,0.0601187,83184.0,83161.0,0.1898]
[1741869255626,0.1803741,83178.0,83177.0,0.1202423]
[1741869255829,0.0601236,83178.0,83169.0,0.0601288]
[1741869256124,0.0601266,83173.0,83170.0,0.1202547]
[1741869256431,0.0601266,83173.0,83172.0,0.1202544]
[1741869256637,0.1202497,83176.0,83175.0,0.1202486]
[1741869256835,0.0601237,83177.0,83165.0,0.00018036]
[1741869257042,0.1803885,83173.0,83172.0,0.1202514]
[1741869257335,0.0601265,83174.0,83173.0,0.12025]
[1741869257638,0.1817,83176.0,83175.0,0.12025]
[1741869257831,0.00018036,83182.0,83181.0,0.1202414]
[1741869258622,0.00018036,83182.0,83175.0,0.0601249]
[1741869258824,0.00018036,83182.0,83175.0,0.0601244]
[1741869259025,0.0601307,83168.0,83148.0,0.060144]
[1741869259229,0.120263,83166.0,83151.0,0.0601417]
[1741869259437,0.1202862,83150.0,83149.0,0.1843]
[1741869259828,0.3765,83155.0,83124.0,0.0601613]
[1741869260027,0.120305,83137.0,83136.0,0.1843]
[1741869260236,0.1203123,83135.0,83134.0,0.1203055]
[1741869260439,0.1203122,83133.0,83132.0,0.1203122]
[1741869260637,0.1203209,83126.0,83125.0,0.42050419]
[1741869260838,0.0601627,83125.0,83121.0,0.1203262]
[1741869261038,0.1871,83132.0,83119.0,0.1843]
[1741869261236,0.1871,83132.0,83118.0,0.42050419]
[1741869261237,0.1894,83131.0,83118.0,0.42050419]
[1741869261539,0.120331,83119.0,83118.0,0.42050419]
[1741869261743,0.120331,83119.0,83118.0,0.54083669]
[1741869261936,0.120331,83119.0,83118.0,0.42050419]
[1741869262335,0.491731,83119.0,83118.0,0.42050419]
[1741869264126,0.641731,83119.0,83118.0,0.42050419]
[1741869264332,0.641731,83119.0,83101.0,0.62234046]
[1741869264333,0.120347,83108.0,83104.0,0.1203514]
[1741869264536,0.1203513,83105.0,83104.0,0.1203514]
[1741869264732,0.3714,83107.0,83106.0,0.1203499]
[1741869265434,0.28502627,83130.0,83100.0,0.1601792]
[1741869265637,0.1805188,83112.0,83111.0,0.1203397]
[1741869266037,0.1805261,83107.0,83106.0,0.1203491]
[1741869266238,0.1203495,83109.0,83108.0,0.1203441]
[1741869266437,0.3081455,83111.0,83110.0,0.1203441]
[1741869266940,0.3791,83111.0,83110.0,0.1203441]
[1741869267241,0.3791,83111.0,83108.0,0.1203441]
[1741869267242,0.060174,83109.0,83108.0,0.1203441]
[1741869267441,0.5596159,83111.0,83110.0,0.1203441]
[1741869267644,0.4392715,83111.0,83110.0,0.1203441]
[1741869267837,0.1203455,83109.0,83108.0,0.1203441]
[1741869268038,0.3791,83111.0,83110.0,0.1203441]
[1741869268443,0.00018048,83115.0,83114.0,0.1203383]
[1741869269145,8e-08,83115.0,83114.0,0.1203383]
[1741869269939,8e-08,83115.0,83114.0,0.2703383]
[1741869270848,8e-08,83115.0,83114.0,0.1203383]
[1741869273147,0.1203426,83111.0,83110.0,0.2964422]
[1741869273342,0.0601705,83113.0,83112.0,0.1203412]
[1741869273543,0.1203389,83114.0,83113.0,0.1203383]
[1741869273746,8e-08,83115.0,83114.0,0.1203383]
[1741869273947,8e-08,83115.0,83114.0,0.3043383]
[1741869274141,8e-08,83115.0,83114.0,0.4949383]
[1741869276238,8e-08,83115.0,83100.0,0.1]
[1741869276439,0.0601741,83109.0,83108.0,0.0601707]
[1741869276641,0.1805327,83104.0,83103.0,0.1805247]
[1741869276842,0.1805327,83104.0,83103.0,0.0601764]
[1741869277248,0.0601771,83103.0,83100.0,0.1]
[1741869277450,0.1203571,83101.0,83100.0,0.2203564]
[1741869277753,0.1203571,83101.0,83100.0,0.1]
[1741869277937,0.1203571,83101.0,83100.0,0.2203586]
[1741869278338,0.3646,83103.0,83100.0,0.1]
[1741869278544,0.1818,83103.0,83102.0,0.1203557]
[1741869278746,0.1828,83111.0,83108.0,0.0601728]
[1741869278949,0.00072,83126.0,83113.0,0.1203397]
[1741869279242,0.34517667,83140.0,83127.0,0.1203195]
[1741869279243,1.39804,83140.0,83127.0,0.1203195]
[1741869279543,1.39804,83140.0,83128.0,0.301618]
[1741869279745,2e-08,83129.0,83128.0,0.487018]
[1741869279952,0.1818,83148.0,83147.0,0.1202905]
[1741869280646,0.12045798,83156.0,83155.0,0.1202789]
[1741869280953,0.1202905,83147.0,83146.0,0.3559319]
[1741869281151,0.0601438,83149.0,83142.0,0.0601485]
[1741869281349,0.1202963,83143.0,83142.0,0.0601485]
[1741869281654,0.1202963,83143.0,83140.0,0.2356502]
[1741869281655,0.12046018,83156.0,83155.0,0.1202789]
[1741869281849,0.00018048,83156.0,83141.0,0.1799]
[1741869282058,0.1804458,83144.0,83143.0,0.1202916]
[1741869282245,0.1742,83155.0,83150.0,0.1202804]
[1741869282246,0.0601435,83152.0,83150.0,0.1202804]
[1741869282445,0.1804282,83152.0,83151.0,0.1202847]
[1741869282642,0.0601403,83154.0,83144.0,0.0601473]
[1741869282643,0.1804393,83147.0,83146.0,0.1202877]
[1741869282849,0.18608048,83156.0,83149.0,0.1202862]
[1741869282850,0.1202872,83150.0,83149.0,0.1202862]
[1741869283153,0.180431,83150.0,83149.0,0.1202862]
[1741869283350,0.0601438,83150.0,83149.0,0.1202862]
[1741869283950,0.00018048,83156.0,83149.0,0.1202862]
[1741869284146,0.00018048,83156.0,83155.0,0.1202789]
[1741869284351,8e-08,83156.0,83155.0,0.1202789]
[1741869284554,0.00964178,83179.0,83153.0,0.2073]
[1741869284757,0.1803776,83177.0,83176.0,0.1202471]
[1741869285146,0.3727616,83183.0,83182.0,0.1202399]
[1741869285547,0.12025,83176.0,83175.0,0.0601232]
[1741869286250,0.1803704,83178.0,83177.0,0.1202471]
[1741869286645,0.210123,83178.0,83174.0,0.00018037]
[1741869286854,0.0601408,83155.0,83151.0,0.2066]
[1741869287050,0.1804241,83155.0,83154.0,0.1202768]
[1741869287256,1.3978,83167.0,83124.0,0.00944365]
[1741869287555,0.1804458,83145.0,83144.0,0.0601464]
[1741869287763,0.1203021,83140.0,83139.0,0.1804504]
[1741869287945,0.4159,83144.0,83143.0,0.1202963]
[1741869288266,0.00018037,83153.0,83138.0,0.2066]
[1741869288561,0.00018037,83153.0,83152.0,0.1202833]
[1741869288757,0.12046217,83153.0,83152.0,0.1202833]
[1741869289057,0.00018037,83153.0,83152.0,0.1202833]
[1741869290658,0.120305,83137.0,83136.0,0.12048257]
[1741869290850,0.120305,83137.0,83136.0,0.00018037]
[1741869291046,0.1805,83119.0,83118.0,0.1203319]
[1741869291254,0.28502627,83130.0,83106.0,0.1973]
[1741869291455,0.1961,83118.0,83106.0,0.1973]
[1741869291655,0.3234368,83117.0,83116.0,0.1203339]
[1741869291964,0.0601701,83113.0,83069.0,0.6020103]
[1741869292259,0.1203571,83101.0,83100.0,0.2203586]
[1741869292459,0.0601772,83103.0,83102.0,0.1203557]
[1741869292958,0.1203571,83101.0,83100.0,0.1]
[1741869293159,0.1805791,83083.0,83082.0,0.1203811]
[1741869293366,0.0601918,83083.0,83082.0,0.2407637]
[1741869293553,0.1203809,83085.0,83084.0,0.1203803]
[1741869293756,0.1203809,83085.0,83080.0,0.060193]
[1741869293951,0.0601938,83080.0,83076.0,0.1203901]
[1741869294166,0.1805851,83080.0,83079.0,0.120389]
[1741869295460,0.1953,83082.0,83079.0,0.120389]
[1741869295461,0.3156849,83082.0,83081.0,0.1203861]
[1741869295661,0.1953,83082.0,83061.0,0.0602071]
[1741869295965,0.00018048,83086.0,83083.0,0.060191]
[1741869296157,0.00018048,83086.0,83085.0,0.1203803]
[1741869301162,0.10734302,83104.0,83085.0,0.15]
[1741869301367,0.1805457,83099.0,83098.0,0.0601805]
[1741869301567,0.1805578,83094.0,83093.0,0.1203644]
[1741869301765,0.2646776,83103.0,83083.0,0.1935]
[1741869301970,0.22769612,83104.0,83103.0,0.1203542]
[1741869302270,0.1805594,83096.0,83095.0,0.0601825]
[1741869302471,0.0601802,83099.0,83095.0,0.00018048]
[1741869302670,0.1805717,83086.0,83085.0,0.1805637]
[1741869302865,0.1805717,83086.0,83083.0,0.1935]
[1741869302866,0.06019,83086.0,83083.0,0.1935]
[1741869303072,0.1203817,83084.0,83083.0,0.1935]
[1741869303465,0.1203817,83084.0,83083.0,0.3138832]
[1741869303663,0.2045,83086.0,83085.0,0.1203803]
[1741869303864,0.12055058,83092.0,83091.0,0.1203716]
[1741869305578,0.00018048,83092.0,83056.0,0.00088]
[1741869305769,0.00018048,83092.0,83091.0,0.1203716]
[1741869305965,0.12055058,83092.0,83091.0,0.1203716]
[1741869306166,0.00018048,83092.0,83091.0,0.1203716]
[1741869306367,0.12055058,83092.0,83091.0,0.1203716]
[1741869306767,0.00018048,83092.0,83091.0,0.1203716]
[1741869307368,0.10734302,83104.0,83087.0,0.193]
[1741869307569,0.10734302,83104.0,83103.0,0.1203542]
[1741869308270,0.10734302,83104.0,83087.0,0.00088]
[1741869308471,0.2407326,83098.0,83097.0,0.1203574]
[1741869308871,0.1203658,83096.0,83095.0,0.120365]
[1741869309076,0.1203731,83091.0,83090.0,0.1203651]
[1741869309375,0.1203731,83091.0,83090.0,0.2407307]
[1741869309681,0.1998,83095.0,83088.0,0.0601879]
[1741869309872,0.120368,83094.0,83093.0,0.1203672]
[1741869310178,0.26484,83098.0,83097.0,0.1203629]
[1741869310374,0.0601771,83103.0,83102.0,0.1203542]
[1741869310570,0.5281971,83103.0,83102.0,0.1203542]
[1741869310776,0.2043,83103.0,83102.0,0.1203542]
[1741869310971,0.00018048,83104.0,83102.0,0.1203542]
[1741869311271,0.00018048,83104.0,83103.0,0.3330542]
[1741869311472,0.00018048,83104.0,83103.0,0.5438542]
[1741869312070,8e-08,83104.0,83103.0,0.5438542]
[1741869315575,8e-08,83104.0,83103.0,0.3330542]
[1741869316470,8e-08,83104.0,83103.0,0.5474542]
[1741869316667,0.422,83135.0,83131.0,0.1203137]
[1741869317173,0.17890504,83141.0,83131.0,0.1203137]
[1741869317567,0.22946079,83132.0,83131.0,0.3403137]
[1741869317771,0.10914859,83132.0,83130.0,0.3353137]
[1741869317975,0.22946119,83132.0,83131.0,0.1203137]
[1741869318681,0.22946119,83132.0,83123.0,0.18066328]
[1741869318682,0.1203238,83124.0,83123.0,0.18066328]
[1741869318983,0.10734302,83127.0,83110.0,0.1203437]
[1741869319176,0.10734302,83127.0,83112.0,0.1203343]
[1741869319177,0.20484422,83120.0,83112.0,0.1203343]
[1741869319378,0.1203457,83113.0,83112.0,0.1805035]
[1741869319680,0.1203615,83098.0,83097.0,0.215]
[1741869319871,0.0601864,83091.0,83088.0,0.060187]
[1741869320070,0.1203803,83085.0,83084.0,0.2191]
[1741869320269,0.1203803,83085.0,83084.0,0.3394817]
[1741869320468,0.1203803,83085.0,83081.0,0.00018048]
[1741869320669,0.1203846,83082.0,83081.0,0.12056658]
[1741869321076,0.1203846,83082.0,83081.0,0.06037288]
[1741869321269,0.1203846,83082.0,83081.0,0.00018048]
[1741869321473,0.1203977,83073.0,83072.0,0.2128943]
[1741869321678,0.1203977,83073.0,83064.0,0.07667918]
[1741869321679,0.1204093,83065.0,83064.0,0.07667918]
[1741869321979,0.1204093,83065.0,83044.0,0.00104255]
[1741869321980,0.01122185,83065.0,83044.0,0.00012255]
[1741869322284,0.01122185,83065.0,83038.0,0.0602239]
[1741869322285,0.2710848,83060.0,83036.0,0.2191]
[1741869322483,0.1204557,83033.0,83030.0,0.3360597]
[1741869322780,0.2710848,83050.0,83031.0,0.1204586]
[1741869322781,0.13168015,83032.0,83031.0,0.1204586]
[1741869322980,0.01122185,83032.0,83031.0,0.1204586]
[1741869323883,0.12046,83030.0,83029.0,0.54627667]
[1741869324073,0.13168185,83030.0,83029.0,0.42581807]
[1741869324274,0.01122185,83030.0,83029.0,0.54627957]
[1741869324476,0.13168185,83030.0,83029.0,0.42581807]
[1741869324880,0.15020332,83030.0,83029.0,0.42581807]
[1741869325275,0.35790332,83030.0,83029.0,0.42581807]
[1741869325879,0.38744332,83030.0,83017.0,0.4919155]
[1741869326087,0.1204774,83018.0,83017.0,0.4919155]
[1741869326272,0.01122185,83018.0,83011.0,0.1204864]
[1741869326471,0.1807431,83009.0,83008.0,0.1204867]
[1741869326680,0.1205021,83001.0,82991.0,0.0602581]
[1741869326888,0.1205021,83001.0,82999.0,0.1205046]
[1741869327081,0.13205034,83001.0,82999.0,0.1205041]
[1741869327381,0.38053034,83001.0,82989.0,0.2087]
[1741869327583,0.39898336,83001.0,82987.0,0.1205219]
[1741869327770,0.39898336,83001.0,82980.0,0.060266]
[1741869327976,0.54898336,83001.0,82979.0,0.2087]
[1741869328172,0.0602562,82994.0,82953.0,0.0602853]
[1741869328371,0.0602666,82980.0,82966.0,0.2087]
[1741869328577,0.39845474,82979.0,82978.0,0.1205341]
[1741869328777,0.21764824,82979.0,82978.0,0.1205341]
[1741869329276,0.0602698,82977.0,82973.0,0.1205372]
[1741869329478,0.1205355,82978.0,82977.0,0.1205355]
[1741869329874,0.1205355,82978.0,82973.0,0.0602708]
[1741869330079,0.2035,82977.0,82976.0,0.1205384]
[1741869330573,0.00018071,82982.0,82960.0,0.2710848]
[1741869330774,0.1205526,82967.0,82964.0,0.0602779]
[1741869331077,0.1205529,82966.0,82965.0,0.2054]
[1741869331280,0.0602754,82968.0,82965.0,0.2054]
[1741869331281,0.00018071,82982.0,82965.0,0.2054]
[1741869331472,0.01169144,82981.0,82980.0,0.1205326]
[1741869331784,0.00018071,82982.0,82981.0,0.1205312]
[1741869332184,0.00018071,82982.0,82981.0,0.28982703]
[1741869332377,0.00018071,82982.0,82981.0,0.41035823]
[1741869332986,0.12071041,82982.0,82981.0,0.41035823]
[1741869333188,0.00018071,82982.0,82981.0,0.41035823]
[1741869334282,0.00018071,82982.0,82981.0,0.04866175]
[1741869334893,0.00018071,82982.0,82979.0,0.1205316]
[1741869335087,0.12071091,82982.0,82981.0,0.1205312]
[1741869335282,0.00018071,82982.0,82981.0,0.1205312]
[1741869335489,0.12071041,82982.0,82981.0,0.1205312]
[1741869336276,0.00018071,82982.0,82972.0,0.0602717]
[1741869336481,0.00018071,82982.0,82967.0,0.1808266]
[1741869336482,0.1808334,82968.0,82967.0,0.1808266]
[1741869336677,0.0602729,82971.0,82967.0,0.0602751]
[1741869336881,0.2124,82970.0,82940.0,0.2054]
[1741869337179,0.1205496,82969.0,82968.0,0.1205486]
[1741869337686,0.3329496,82969.0,82968.0,0.1205486]
[1741869337884,0.2124,82969.0,82968.0,0.1205486]
[1741869338284,0.3329486,82969.0,82968.0,0.1205486]
[1741869338589,0.1205515,82967.0,82966.0,0.0602759]
[1741869338788,0.0602821,82960.0,82959.0,0.180834]
[1741869338993,0.1205646,82958.0,82957.0,0.3303631]
[1741869339188,0.2138,82959.0,82957.0,0.3303631]
[1741869339493,0.2138,82959.0,82957.0,0.27007525]
[1741869339694,0.3343646,82959.0,82958.0,0.1205646]
[1741869340189,0.2138,82959.0,82958.0,0.1205646]
[1741869340689,0.3343631,82959.0,82958.0,0.3330646]
[1741869340888,0.2138,82959.0,82958.0,0.3330646]
[1741869341095,0.0602788,82963.0,82962.0,0.1808324]
[1741869341482,0.1808412,82963.0,82962.0,0.1808324]
[1741869341686,0.1205617,82960.0,82959.0,0.0602815]
[1741869341890,0.06028,82962.0,82959.0,0.1808438]
[1741869342090,0.3237588,82962.0,82961.0,0.1808397]
[1741869342286,0.3237588,82962.0,82959.0,0.0602815]
[1741869342488,0.2634796,82962.0,82943.0,0.2194]
[1741869342691,0.1808429,82964.0,82963.0,0.1205515]
[1741869342891,0.1808543,82960.0,82959.0,0.12056]
[1741869343087,0.1808378,82965.0,82964.0,0.1205544]
[1741869343293,0.1205522,82967.0,82966.0,0.12055]
[1741869343593,0.2032,82976.0,82964.0,0.0602777]
[1741869343788,0.00018071,82977.0,82975.0,0.1205399]
[1741869344090,1e-08,82977.0,82976.0,0.5525384]
[1741869344796,1e-08,82977.0,82973.0,0.0602707]
[1741869344797,0.1808199,82975.0,82974.0,0.1205384]
[1741869344993,1e-08,82977.0,82965.0,0.5459507]
[1741869344994,0.0602756,82969.0,82965.0,0.5459507]
[1741869345294,0.060275,82968.0,82967.0,0.12055]
[1741869345498,0.0602739,82970.0,82967.0,0.12055]
[1741869345697,0.3368488,82969.0,82968.0,0.12055]
[1741869345896,0.2163,82969.0,82968.0,0.12055]
[1741869346097,0.23500001,82977.0,82976.0,0.1205384]
[1741869346287,0.12053701,82977.0,82976.0,0.1205384]
[1741869346486,0.12053701,82977.0,82968.0,0.4254]
[1741869346487,0.1205486,82971.0,82970.0,0.1205409]
[1741869346988,0.5598408,82976.0,82975.0,0.1205399]
[1741869347188,0.3368408,82976.0,82975.0,0.1205399]
[1741869347593,0.2163,82976.0,82975.0,0.1205399]
[1741869348006,1e-08,82977.0,82976.0,0.1205384]
[1741869348308,1e-08,82977.0,82976.0,0.5404384]
[1741869348900,0.2163,82998.0,82986.0,0.1205195]
[1741869348901,0.1807891,82987.0,82986.0,0.1205195]